[Event "Schack-SM 2022: Mastarklassen-Elit"]
[Site "Fyrishov, Idrottsgatan 2, Uppsala, Sweden"]
[Date "2022.07.03"]
[Round "2.4"]
[White "Johansson, Jan"]
[Black "Thorn, Eric"]
[Result "1-0"]
[TimeControl "90 minutes for 40 moves + 30 minutes for the rest of the game + 30 seconds per move from move one."]
[WhiteTitle "IM"]
[BlackTitle "FM"]
[WhiteFideId "1700103"]
[BlackFideId "1710729"]
[WhiteElo "2306"]
[BlackElo "2366"]

1. d4 {[%clk 01:30:05]} {[%emt 00:00:50]} Nf6 {[%clk 01:30:53]} {[%emt
00:00:11]} 2. Nf3 {[%clk 01:30:18]} {[%emt 00:00:17]} c5 {[%clk 01:31:16]}
{[%emt 00:00:07]} 3. d5 {[%clk 01:29:39]} {[%emt 00:01:09]} b5 {[%clk
01:30:59]} {[%emt 00:00:47]} 4. a4 {[%clk 01:19:44]} {[%emt 00:10:26]} b4
{[%clk 01:31:08]} {[%emt 00:00:20]} 5. Bg5 {[%clk 01:16:39]} {[%emt 00:03:34]}
g6 {[%clk 01:30:48]} {[%emt 00:00:51]} 6. Nbd2 {[%clk 01:04:50]} {[%emt
00:12:18]} Bg7 {[%clk 01:24:58]} {[%emt 00:06:20]} 7. e4 {[%clk 01:04:55]}
{[%emt 00:00:25]} O-O {[%clk 01:21:53]} {[%emt 00:03:36]} 8. Bd3 {[%clk
00:55:36]} {[%emt 00:09:49]} Ba6 {[%clk 01:09:42]} {[%emt 00:12:41]} 9. O-O
{[%clk 00:41:48]} {[%emt 00:14:18]} Qc8 {[%clk 00:50:14]} {[%emt 00:19:57]} 10.
Re1 {[%clk 00:34:46]} {[%emt 00:07:32]} c4 {[%clk 00:45:21]} {[%emt 00:05:24]}
11. Bf1 {[%clk 00:30:11]} {[%emt 00:05:05]} e6 {[%clk 00:33:45]} {[%emt
00:12:06]} 12. Bxf6 {[%clk 00:22:59]} {[%emt 00:07:42]} Bxf6 {[%clk 00:34:03]}
{[%emt 00:00:12]} 13. e5 {[%clk 00:23:25]} {[%emt 00:00:04]} Bg7 {[%clk
00:33:54]} {[%emt 00:00:38]} 14. Ne4 {[%clk 00:23:49]} {[%emt 00:00:07]} Qc7
{[%clk 00:27:03]} {[%emt 00:07:22]} 15. Qd4 {[%clk 00:21:59]} {[%emt 00:02:19]}
exd5 {[%clk 00:17:48]} {[%emt 00:09:46]} 16. Qxd5 {[%clk 00:21:59]} {[%emt
00:00:29]} Nc6 {[%clk 00:09:24]} {[%emt 00:08:53]} 17. Nc5 {[%clk 00:22:14]}
{[%emt 00:00:15]} Qa5 {[%clk 00:08:13]} {[%emt 00:01:42]} 18. Rad1 {[%clk
00:19:35]} {[%emt 00:03:08]} Ne7 {[%clk 00:02:03]} {[%emt 00:06:41]} 19. Qd6
{[%clk 00:18:46]} {[%emt 00:01:18]} Nf5 {[%clk 00:01:40]} {[%emt 00:00:54]} 20.
Qxa6 {[%clk 00:19:01]} {[%emt 00:00:14]} Qxc5 {[%clk 00:02:09]} {[%emt
00:00:02]} 21. Bxc4 {[%clk 00:19:09]} {[%emt 00:00:22]} Rac8 {[%clk 00:01:05]}
{[%emt 00:01:34]} 22. Bb3 {[%clk 00:19:19]} {[%emt 00:00:19]} Rc6 {[%clk
00:00:39]} {[%emt 00:00:57]} 23. Qd3 {[%clk 00:17:28]} {[%emt 00:02:19]} Rc7
{[%clk 00:01:04]} {[%emt 00:00:06]} 24. Qe4 {[%clk 00:16:49]} {[%emt 00:01:08]}
Qe7 {[%clk 00:01:06]} {[%emt 00:00:29]} 25. Rd5 {[%clk 00:09:47]} {[%emt
00:07:32]} Re8 {[%clk 00:01:08]} {[%emt 00:00:28]} 26. Rb5 {[%emt 00:01:39]} d6
{[%clk 00:00:43]} {[%emt 00:00:52]} 27. exd6 {[%clk 00:03:07]} {[%emt
00:06:05]} Qxe4 {[%clk 00:00:36]} {[%emt 00:00:37]} 28. Rxe4 {[%clk 00:03:30]}
{[%emt 00:00:07]} Nxd6 {[%clk 00:00:38]} {[%emt 00:00:28]} 29. Rxe8+ Nxe8
{[%clk 00:01:07]} 30. Rxb4 {[%clk 00:03:33]} {[%emt 00:00:43]} Kf8 {[%clk
00:01:06]} {[%emt 00:00:30]} 31. c3 {[%clk 00:02:57]} {[%emt 00:01:07]} Nd6
{[%clk 00:00:44]} {[%emt 00:00:52]} 32. Kf1 {[%clk 00:03:07]} {[%emt 00:00:20]}
a5 {[%clk 00:00:36]} {[%emt 00:00:38]} 33. Rb8+ {[%clk 00:03:26]} {[%emt
00:00:11]} Ke7 {[%clk 00:01:00]} {[%emt 00:00:05]} 34. Ke2 {[%clk 00:03:03]}
{[%emt 00:00:53]} Nb7 {[%clk 00:00:34]} {[%emt 00:00:57]} 35. Bc2 {[%clk
00:01:20]} {[%emt 00:02:11]} h6 {[%clk 00:00:39]} {[%emt 00:00:31]} 36. Ra8
{[%clk 00:01:21]} {[%emt 00:00:25]} Kd6 {[%clk 00:00:37]} {[%emt 00:00:32]} 37.
Nd2 {[%clk 00:01:17]} {[%emt 00:00:33]} Kc5 {[%clk 00:00:34]} {[%emt 00:00:34]}
38. Ne4+ {[%clk 00:00:59]} {[%emt 00:00:47]} Kb6 {[%clk 00:00:33]} {[%emt
00:00:31]} 39. Re8 {[%clk 00:00:36]} {[%emt 00:00:53]} Kc6 {[%clk 00:00:35]}
{[%emt 00:00:29]} 40. Ra8 {[%clk 00:00:44]} {[%emt 00:00:21]} Re7 {[%clk
00:00:35]} {[%emt 00:00:31]} 41. Kf3 {[%clk 00:25:55]} {[%emt 00:05:19]} Rd7
{[%clk 00:20:50]} {[%emt 00:10:15]} 42. Ke2 {[%clk 00:20:11]} {[%emt 00:06:13]}
Re7 {[%clk 00:18:55]} {[%emt 00:02:26]} 43. Ra6+ {[%clk 00:18:06]} {[%emt
00:02:34]} Kc7 {[%clk 00:17:42]} {[%emt 00:01:43]} 44. Kd1 {[%clk 00:18:11]}
{[%emt 00:00:25]} Be5 {[%clk 00:12:45]} {[%emt 00:05:27]} 45. g3 {[%clk
00:18:28]} {[%emt 00:00:13]} Kc8 {[%clk 00:11:20]} {[%emt 00:01:55]} 46. f4
{[%clk 00:15:02]} {[%emt 00:03:57]} Bc7 {[%clk 00:11:09]} {[%emt 00:00:40]} 47.
Nf6 {[%clk 00:13:07]} {[%emt 00:02:25]} h5 {[%clk 00:05:35]} {[%emt 00:06:05]}
48. Bb3 {[%clk 00:10:54]} {[%emt 00:02:43]} Nc5 {[%clk 00:04:00]} {[%emt
00:02:03]} 49. Ra8+ {[%clk 00:10:42]} {[%emt 00:00:43]} Bb8 {[%clk 00:04:25]}
{[%emt 00:00:06]} 50. Bc4 {[%clk 00:10:32]} {[%emt 00:00:39]} Kb7 {[%clk
00:00:38]} {[%emt 00:04:17]} 51. Bd5+ {[%clk 00:10:27]} {[%emt 00:00:35]} Kc8
{[%clk 00:00:36]} {[%emt 00:00:33]} 52. Rxa5 {[%clk 00:09:41]} {[%emt
00:01:16]} Nd3 {[%clk 00:00:50]} {[%emt 00:00:14]} 53. Rb5 {[%clk 00:06:53]}
{[%emt 00:03:19]} Ba7 {[%clk 00:00:51]} {[%emt 00:00:30]} 54. a5 {[%clk
00:06:12]} {[%emt 00:01:11]} Bg1 {[%clk 00:00:57]} {[%emt 00:00:23]} 55. a6
{[%clk 00:06:24]} {[%emt 00:00:19]} Nf2+ {[%clk 00:00:36]} {[%emt 00:00:51]} 56.
Kd2 {[%clk 00:05:56]} {[%emt 00:00:58]} Ng4 {[%clk 00:00:46]} {[%emt 00:00:19]}
57. Bb7+ {[%clk 00:05:10]} {[%emt 00:01:16]} Kb8 {[%clk 00:00:40]} {[%emt
00:00:37]} 58. Bf3+ {[%clk 00:04:23]} {[%emt 00:01:15]} Ka7 {[%clk 00:00:50]}
{[%emt 00:00:21]} 59. Bxg4 {[%clk 00:02:19]} {[%emt 00:02:35]} hxg4 {[%clk
00:01:19]} {[%emt 00:00:01]} 60. Rb7+ {[%clk 00:01:20]} {[%emt 00:01:29]} Rxb7
{[%clk 00:01:41]} {[%emt 00:00:08]} 61. axb7 {[%clk 00:01:09]} {[%emt
00:00:41]} Bxh2 {[%clk 00:01:39]} {[%emt 00:00:31]} 62. Nxg4 {[%clk 00:01:24]}
{[%emt 00:00:15]} Bxg3 {[%clk 00:02:03]} {[%emt 00:00:07]} 63. Ke3 {[%clk
00:01:48]} {[%emt 00:00:05]} f5 {[%clk 00:01:54]} {[%emt 00:00:40]} 64. Kf3
{[%clk 00:02:07]} {[%emt 00:00:10]} Bh4 {[%clk 00:01:21]} {[%emt 00:01:03]} 65.
Ne5 {[%clk 00:01:29]} {[%emt 00:01:08]} g5 {[%clk 00:01:47]} {[%emt 00:00:04]}
66. fxg5 {[%clk 00:01:42]} {[%emt 00:00:17]} Bxg5 {[%clk 00:02:08]} {[%emt
00:00:10]} 67. Nf7 {[%clk 00:02:01]} {[%emt 00:00:10]} Bc1 {[%clk 00:02:19]}
{[%emt 00:00:19]} 68. b3 {[%clk 00:02:23]} {[%emt 00:00:08]} Bb2 {[%clk
00:01:32]} {[%emt 00:01:18]} 69. c4 {[%clk 00:02:44]} {[%emt 00:00:09]} Kxb7
{[%clk 00:01:57]} {[%emt 00:00:05]} 70. Nd6+ {[%clk 00:02:04]} {[%emt
00:01:10]} Kc6 {[%clk 00:02:24]} {[%emt 00:00:01]} 71. Nxf5 {[%clk 00:02:17]}
{[%emt 00:00:19]} Kc5 {[%clk 00:01:57]} {[%emt 00:00:57]} 72. Ke4 {[%clk
00:02:40]} {[%emt 00:00:06]} Kb4 {[%clk 00:01:20]} {[%emt 00:01:08]} 73. Nd4
{[%clk 00:03:02]} {[%emt 00:00:08]} Bc3 {[%clk 00:00:43]} {[%emt 00:01:06]} 74.
Kd5 {[%clk 00:02:17]} {[%emt 00:01:15]} Bd2 {[%clk 00:00:33]} {[%emt 00:00:41]}
75. c5 {[%clk 00:01:19]} {[%emt 00:01:29]} Bf4 {[%clk 00:00:59]} {[%emt
00:00:04]} 76. c6 {[%clk 00:00:35]} {[%emt 00:01:14]} Bb8 {[%clk 00:00:54]}
{[%emt 00:00:34]} 77. Ne6 {[%clk 00:00:36]} {[%emt 00:00:29]} Kxb3 {[%clk
00:01:07]} {[%emt 00:00:18]} 78. Kc5 {[%clk 00:01:04]} Kc3 {[%clk 00:01:08]}
{[%emt 00:00:30]} 79. Kb6 {[%clk 00:01:05]} {[%emt 00:00:29]} Kc4 {[%clk
00:01:13]} {[%emt 00:00:25]} 80. Nc7 {[%clk 00:01:29]} {[%emt 00:00:06]} Kd4
{[%clk 00:00:38]} {[%emt 00:01:04]} 81. Kb7 {[%clk 00:01:50]} {[%emt 00:00:09]}
Kc5 {[%clk 00:00:59]} {[%emt 00:00:10]} 82. Na6+ {[%clk 00:02:15]} {[%emt
00:00:05]} 1-0

[Event "Schack-SM 2022: Mastarklassen-Elit"]
[Site "Fyrishov, Idrottsgatan 2, Uppsala, Sweden"]
[Date "2022.07.03"]
[Round "2.5"]
[White "Cederstam, Carl"]
[Black "Andersson, Tommy"]
[Result "1/2-1/2"]
[TimeControl "90 minutes for 40 moves + 30 minutes for the rest of the game + 30 seconds per move from move one."]
[WhiteTitle "FM"]
[BlackTitle "IM"]
[WhiteFideId "1713329"]
[BlackFideId "1703803"]
[WhiteElo "2332"]
[BlackElo "2384"]

1. e4 {[%clk 01:30:35]} {[%emt 00:00:23]} c5 {[%clk 01:30:54]} {[%emt
00:00:06]} 2. Nf3 {[%clk 01:30:58]} {[%emt 00:00:08]} d6 {[%clk 01:31:15]}
{[%emt 00:00:08]} 3. d4 {[%clk 01:31:20]} {[%emt 00:00:08]} cxd4 {[%clk
01:31:39]} {[%emt 00:00:07]} 4. Nxd4 {[%clk 01:31:41]} {[%emt 00:00:08]} Nf6
{[%clk 01:32:03]} {[%emt 00:00:07]} 5. Nc3 {[%clk 01:32:02]} {[%emt 00:00:08]}
a6 {[%clk 01:32:26]} {[%emt 00:00:08]} 6. Be2 {[%clk 01:32:23]} {[%emt
00:00:09]} e6 {[%clk 01:31:04]} {[%emt 00:01:51]} 7. O-O {[%clk 01:32:22]}
{[%emt 00:00:32]} Be7 {[%clk 01:31:17]} {[%emt 00:00:15]} 8. Be3 {[%clk
01:31:43]} {[%emt 00:01:11]} O-O {[%clk 01:30:05]} {[%emt 00:01:41]} 9. Qd2
{[%clk 01:28:18]} {[%emt 00:03:53]} Qc7 {[%clk 01:28:43]} {[%emt 00:01:55]} 10.
a4 {[%clk 01:23:04]} {[%emt 00:05:43]} b6 {[%clk 01:25:48]} {[%emt 00:03:26]}
11. f4 {[%clk 01:20:25]} {[%emt 00:03:06]} Bb7 {[%clk 01:24:25]} {[%emt
00:01:55]} 12. Bf3 {[%clk 01:18:41]} {[%emt 00:02:14]} Nbd7 {[%clk 01:17:59]}
{[%emt 00:06:56]} 13. g4 {[%clk 01:17:18]} {[%emt 00:01:50]} Nc5 {[%clk
00:40:11]} {[%emt 00:38:21]} 14. Qg2 {[%clk 01:16:25]} {[%emt 00:01:22]} d5
{[%clk 00:16:41]} {[%emt 00:24:03]} 15. exd5 {[%clk 00:50:31]} {[%emt
00:26:22]} Nxd5 {[%clk 00:16:01]} {[%emt 00:01:10]} 16. Nxd5 {[%clk 00:49:31]}
{[%emt 00:01:31]} exd5 {[%clk 00:15:44]} {[%emt 00:00:47]} 17. Nf5 {[%clk
00:37:30]} {[%emt 00:12:27]} Ne4 {[%clk 00:07:55]} {[%emt 00:08:23]} 18. Nxe7+
{[%clk 00:14:58]} {[%emt 00:23:02]} Qxe7 {[%clk 00:08:03]} {[%emt 00:00:21]} 19.
Bd4 {[%clk 00:14:43]} {[%emt 00:00:45]} b5 {[%clk 00:07:54]} {[%emt 00:00:40]}
20. axb5 {[%clk 00:13:50]} {[%emt 00:01:23]} axb5 {[%clk 00:08:15]} {[%emt
00:00:09]} 21. Qe2 {[%clk 00:13:37]} {[%emt 00:00:41]} Bc6 {[%clk 00:05:44]}
{[%emt 00:03:03]} 22. Qe3 {[%clk 00:12:24]} {[%emt 00:01:41]} Rfe8 {[%clk
00:06:00]} {[%emt 00:00:16]} 23. b3 {[%clk 00:08:58]} {[%emt 00:03:55]} Qd7
{[%clk 00:05:47]} {[%emt 00:00:44]} 24. Rxa8 {[%clk 00:08:56]} {[%emt
00:00:32]} Bxa8 {[%clk 00:05:36]} {[%emt 00:00:40]} 25. Re1 {[%clk 00:04:09]}
{[%emt 00:05:15]} h6 {[%clk 00:04:56]} {[%emt 00:01:13]} 26. Re2 {[%clk
00:02:48]} {[%emt 00:01:49]} Bc6 {[%clk 00:05:07]} {[%emt 00:00:20]} 27. Bb2
{[%clk 00:03:00]} {[%emt 00:00:18]} f6 {[%clk 00:04:52]} {[%emt 00:00:46]} 28.
Qd4 {[%clk 00:03:02]} {[%emt 00:00:24]} Qc7 {[%clk 00:04:55]} {[%emt 00:00:30]}
29. Bc1 {[%clk 00:02:33]} {[%emt 00:00:59]} Kh7 {[%clk 00:04:46]} {[%emt
00:00:39]} 30. Kg2 {[%clk 00:02:22]} {[%emt 00:00:41]} Bb7 {[%clk 00:04:50]}
{[%emt 00:00:26]} 31. Qd3 {[%clk 00:02:03]} {[%emt 00:00:49]} Qc6 {[%clk
00:02:40]} {[%emt 00:02:42]} 32. Bb2 {[%clk 00:01:00]} {[%emt 00:01:31]} b4
{[%clk 00:02:27]} {[%emt 00:00:44]} 33. Bxe4+ {[%clk 00:00:43]} {[%emt
00:00:46]} Rxe4 {[%clk 00:01:14]} {[%emt 00:01:43]} 34. Rxe4 {[%clk 00:00:50]}
{[%emt 00:00:24]} dxe4 {[%clk 00:01:37]} {[%emt 00:00:07]} 35. Qc4 {[%clk
00:00:40]} {[%emt 00:00:39]} Qd7 {[%clk 00:01:13]} {[%emt 00:00:56]} 36. Qe2
{[%clk 00:00:51]} {[%emt 00:00:18]} f5 {[%clk 00:00:58]} {[%emt 00:00:45]} 37.
gxf5 {[%clk 00:00:37]} {[%emt 00:00:44]} Qxf5 {[%clk 00:01:20]} {[%emt
00:00:07]} 38. Qe3 {[%clk 00:00:55]} {[%emt 00:00:12]} Qh5 {[%clk 00:01:21]}
{[%emt 00:00:30]} 39. Kg3 {[%clk 00:00:36]} {[%emt 00:00:46]} Qg6+ {[%clk
00:01:20]} {[%emt 00:00:34]} 40. Kf2 {[%clk 00:01:01]} {[%emt 00:00:05]} Qc6
{[%clk 00:01:14]} {[%emt 00:00:36]} 41. c4 {[%clk 00:29:16]} {[%emt 00:02:15]}
bxc3 {[%clk 00:30:04]} {[%emt 00:01:40]} 42. Bxc3 {[%clk 00:28:03]} {[%emt
00:01:43]} Qg6 {[%clk 00:16:48]} {[%emt 00:13:46]} 43. Qg3 {[%clk 00:20:29]}
{[%emt 00:07:59]} Qf7 {[%clk 00:10:02]} {[%emt 00:07:21]} 44. Ke3 {[%clk
00:13:25]} {[%emt 00:07:33]} g6 {[%clk 00:09:06]} {[%emt 00:01:27]} 45. f5
{[%clk 00:12:18]} {[%emt 00:01:37]} gxf5 {[%clk 00:08:53]} {[%emt 00:00:42]} 46.
Qe5 {[%clk 00:09:42]} {[%emt 00:03:07]} f4+ {[%clk 00:03:07]} {[%emt 00:06:15]}
1/2-1/2

[ePGN "0.1;DGT LiveChess/2.2.5"]

[Event "Schack-SM 2022: Mastarklassen-Elit"]
[Site "Fyrishov, Idrottsgatan 2, Uppsala, Sweden"]
[Date "2022.07.02"]
[Round "1.1"]
[White "Trost, Edvin"]
[Black "Ernst, Thomas"]
[Result "0-1"]
[TimeControl "90 minutes for 40 moves + 30 minutes for the rest of the game + 30 seconds per move from move one."]
[WhiteTitle "FM"]
[BlackTitle "GM"]
[WhiteFideId "1729519"]
[BlackFideId "1700065"]
[WhiteElo "2345"]
[BlackElo "2289"]

1. d4 {[%clk 01:30:17]} {[%emt 00:00:42]} Nf6 {[%clk 01:30:51]} {[%emt
00:00:09]} 2. Nf3 {[%clk 01:29:31]} {[%emt 00:01:10]} g6 {[%clk 01:31:04]}
{[%emt 00:00:22]} 3. Nbd2 {[%clk 01:28:00]} {[%emt 00:02:02]} d5 {[%clk
01:25:41]} {[%emt 00:05:53]} 4. b4 {[%clk 01:27:52]} {[%emt 00:00:38]} Bg7
{[%clk 01:24:30]} {[%emt 00:01:41]} 5. e3 {[%clk 01:28:09]} {[%emt 00:00:13]}
a5 {[%clk 01:16:15]} {[%emt 00:08:45]} 6. b5 {[%clk 01:28:32]} {[%emt
00:00:07]} c5 {[%clk 01:16:10]} {[%emt 00:00:33]} 7. bxc6 {[%clk 01:28:38]}
{[%emt 00:00:26]} Nxc6 {[%clk 01:16:28]} {[%emt 00:00:12]} 8. Be2 {[%clk
01:28:23]} {[%emt 00:00:44]} O-O {[%clk 01:15:37]} {[%emt 00:01:22]} 9. O-O
{[%clk 01:28:49]} {[%emt 00:00:04]} Ne4 {[%clk 01:13:35]} {[%emt 00:02:32]} 10.
Nxe4 {[%clk 01:24:24]} {[%emt 00:04:55]} dxe4 {[%clk 01:13:56]} {[%emt
00:00:08]} 11. Nd2 {[%clk 01:24:37]} {[%emt 00:00:18]} e5 {[%clk 01:09:21]}
{[%emt 00:05:04]} 12. c3 {[%clk 01:11:07]} {[%emt 00:14:01]} exd4 {[%clk
01:03:56]} {[%emt 00:05:55]} 13. cxd4 {[%clk 01:10:21]} {[%emt 00:01:16]} f5
{[%clk 01:02:28]} {[%emt 00:01:57]} 14. Rb1 {[%clk 01:09:02]} {[%emt 00:01:50]}
Kh8 {[%clk 01:02:10]} {[%emt 00:00:48]} 15. Nc4 {[%clk 01:07:05]} {[%emt
00:02:26]} f4 {[%clk 00:55:32]} {[%emt 00:07:08]} 16. Nb6 {[%clk 01:02:27]}
{[%emt 00:05:09]} f3 {[%clk 00:55:49]} {[%emt 00:00:13]} 17. Bc4 {[%clk
00:52:43]} {[%emt 00:10:14]} fxg2 {[%clk 00:46:39]} {[%emt 00:09:39]} 18. Re1
{[%clk 00:51:09]} {[%emt 00:02:04]} Qh4 {[%clk 00:40:15]} {[%emt 00:06:54]} 19.
Rb2 {[%clk 00:46:26]} {[%emt 00:05:13]} Ne5 {[%clk 00:39:27]} {[%emt 00:01:17]}
20. Nxc8 {[%clk 00:46:34]} {[%emt 00:00:25]} Raxc8 {[%clk 00:29:55]} {[%emt
00:10:00]} 0-1

[Event "Schack-SM 2022: Mastarklassen-Elit"]
[Site "Fyrishov, Idrottsgatan 2, Uppsala, Sweden"]
[Date "2022.07.02"]
[Round "1.2"]
[White "Engqvist, Thomas"]
[Black "Von Bahr, Oskar"]
[Result "1/2-1/2"]
[TimeControl "90 minutes for 40 moves + 30 minutes for the rest of the game + 30 seconds per move from move one."]
[WhiteTitle "IM"]
[BlackTitle "IM"]
[WhiteFideId "1700332"]
[BlackFideId "1703250"]
[WhiteElo "2330"]
[BlackElo "2386"]

1. Nf3 {[%clk 01:30:56]} {[%emt 00:00:03]} Nf6 {[%clk 01:30:17]} {[%emt
00:00:44]} 2. b3 {[%clk 01:31:06]} {[%emt 00:00:21]} g6 {[%clk 01:29:54]}
{[%emt 00:00:53]} 3. Bb2 {[%clk 01:31:28]} {[%emt 00:00:07]} Bg7 {[%clk
01:30:19]} {[%emt 00:00:05]} 4. g3 {[%clk 01:31:33]} {[%emt 00:00:25]} O-O
{[%clk 01:26:11]} {[%emt 00:04:38]} 5. Bg2 {[%clk 01:31:48]} {[%emt 00:00:15]}
c5 {[%clk 01:25:27]} {[%emt 00:01:14]} 6. c4 {[%clk 01:31:23]} {[%emt
00:00:55]} d6 {[%clk 01:24:52]} {[%emt 00:01:05]} 7. O-O {[%clk 01:30:32]}
{[%emt 00:01:21]} e5 {[%clk 01:24:04]} {[%emt 00:01:18]} 8. e3 {[%clk
01:28:37]} {[%emt 00:02:26]} Nc6 {[%clk 01:22:32]} {[%emt 00:02:01]} 9. d3
{[%clk 01:23:22]} {[%emt 00:05:45]} h6 {[%clk 01:17:26]} {[%emt 00:05:36]} 10.
Nc3 {[%clk 01:09:58]} {[%emt 00:13:54]} Be6 {[%clk 01:14:59]} {[%emt 00:02:56]}
11. d4 {[%clk 01:06:33]} {[%emt 00:03:56]} exd4 {[%clk 01:13:02]} {[%emt
00:02:26]} 12. exd4 {[%clk 01:06:16]} {[%emt 00:00:48]} d5 {[%clk 01:08:20]}
{[%emt 00:05:13]} 13. cxd5 {[%clk 00:57:43]} {[%emt 00:09:02]} Nxd5 {[%clk
01:07:52]} {[%emt 00:00:58]} 14. Na4 {[%clk 00:57:28]} {[%emt 00:00:45]} cxd4
{[%clk 01:01:25]} {[%emt 00:06:57]} 15. Nxd4 {[%clk 00:57:42]} {[%emt
00:00:16]} Nxd4 {[%clk 00:59:29]} {[%emt 00:02:26]} 16. Bxd4 {[%clk 00:58:07]}
{[%emt 00:00:05]} b6 {[%clk 00:49:59]} {[%emt 00:10:00]} 17. Rc1 {[%clk
00:44:22]} {[%emt 00:14:15]} Rb8 {[%clk 00:41:03]} {[%emt 00:09:26]} 18. Bxg7
{[%clk 00:32:55]} {[%emt 00:11:57]} Kxg7 {[%clk 00:41:24]} {[%emt 00:00:09]} 19.
Qd4+ {[%clk 00:32:38]} {[%emt 00:00:48]} Nf6 {[%clk 00:39:08]} {[%emt
00:02:45]} 20. Qe5 {[%clk 00:26:48]} {[%emt 00:06:20]} Rc8 {[%clk 00:35:00]}
{[%emt 00:04:38]} 21. Rxc8 {[%clk 00:17:26]} {[%emt 00:09:53]} Qxc8 {[%clk
00:34:11]} {[%emt 00:01:18]} 22. Nc3 {[%clk 00:14:39]} {[%emt 00:03:16]} Qb8
{[%clk 00:32:59]} {[%emt 00:01:43]} 23. Qxb8 {[%clk 00:14:41]} {[%emt
00:00:28]} Rxb8 {[%clk 00:33:24]} {[%emt 00:00:04]} 24. Nb5 {[%clk 00:14:21]}
{[%emt 00:00:51]} a5 {[%clk 00:27:16]} {[%emt 00:06:37]} 25. Nd4 {[%clk
00:14:28]} {[%emt 00:00:23]} Bd7 {[%clk 00:24:01]} {[%emt 00:03:46]} 26. Rc1
{[%clk 00:14:32]} {[%emt 00:00:26]} Rc8 {[%clk 00:24:01]} {[%emt 00:00:30]} 27.
Rxc8 {[%clk 00:13:59]} {[%emt 00:01:04]} Bxc8 {[%clk 00:24:25]} {[%emt
00:00:05]} 28. a3 {[%clk 00:11:49]} {[%emt 00:02:40]} Kf8 {[%clk 00:23:13]}
{[%emt 00:01:43]} 29. Kf1 {[%clk 00:08:48]} {[%emt 00:03:29]} Ke7 {[%clk
00:22:32]} {[%emt 00:01:12]} 30. Bf3 {[%clk 00:06:18]} {[%emt 00:03:00]} Kd6
{[%clk 00:20:03]} {[%emt 00:02:58]} 31. Ke2 {[%clk 00:05:48]} {[%emt 00:01:00]}
Kc5 {[%clk 00:18:22]} {[%emt 00:02:11]} 32. Kd3 {[%clk 00:05:27]} {[%emt
00:00:51]} Ba6+ {[%clk 00:17:01]} {[%emt 00:01:52]} 33. Kc3 {[%clk 00:04:33]}
{[%emt 00:01:24]} Nd5+ {[%clk 00:16:56]} {[%emt 00:00:35]} 34. Bxd5 {[%clk
00:04:55]} {[%emt 00:00:08]} Kxd5 {[%clk 00:17:22]} {[%emt 00:00:04]} 35. f3
{[%clk 00:03:46]} {[%emt 00:01:39]} Bf1 {[%clk 00:14:57]} {[%emt 00:02:55]} 36.
Nc2 {[%clk 00:03:25]} {[%emt 00:00:50]} Be2 {[%clk 00:14:11]} {[%emt 00:01:16]}
37. Ne3+ {[%clk 00:03:41]} {[%emt 00:00:14]} Ke5 {[%clk 00:10:01]} {[%emt
00:04:40]} 38. Nc4+ {[%clk 00:02:56]} {[%emt 00:01:15]} Kf5 {[%clk 00:10:17]}
{[%emt 00:00:14]} 39. Ne3+ {[%clk 00:02:53]} {[%emt 00:00:34]} Ke5 {[%clk
00:10:01]} {[%emt 00:00:45]} 40. Nc4+ {[%clk 00:03:18]} {[%emt 00:00:07]} Kf5
{[%clk 00:10:24]} {[%emt 00:00:06]} 41. Ne3+ {[%clk 00:05:06]} {[%emt
00:28:41]} Ke5 {[%emt 00:01:21]} 1/2-1/2